[Event "40th IND-chT Open 2020"]
[Site "Ahmedabad"]
[Date "2020.02.08"]
[Round "3.4"]
[White "Lalith Babu M R"]
[Black "Das, Arghyadip"]
[Result "1-0"]
[ECO "D47"]
[WhiteElo "2550"]
[BlackElo "2458"]
[Annotator "ChessBase"]
[PlyCount "67"]
[EventDate "2020.02.05"]
[EventCountry "IND"]
[SourceTitle "playchess.com"]
[Source "ChessBase"]
[SourceQuality "1"]
[TimeControl "5400+30"]

1. d4 {[%emt 0:00:00]} e6 {[%emt 0:00:33]} 2. c4 {[%emt 0:00:00]} d5 {[%emt 0:00:05]} 3. Nf3 {[%emt 0:00:00]} Nf6 {[%emt 0:00:29]} 4. Nc3 {[%emt 0:00:00]} c6 {[%emt 0:00:08]} 5. e3 {[%emt 0:00:00]} Nbd7 {[%emt 0:00:18]} 6. Bd3 {[%emt 0:00:04]} dxc4 {[%emt 0:01:20]} 7. Bxc4 {[%emt 0:00:08]} b5 {[%emt 0:00:07]} 8. Bd3 {[%emt 0:00:03]} Bb7 {[%emt 0:02:04]} 9. e4 {[%emt 0:00:15]} b4 {[%emt 0:01:25]} 10. Na4 {[%emt 0:00:04]} c5 {[%emt 0:00:15]} 11. e5 {[%emt 0:00:04]} Nd5 {[%emt 0:00:44]} 12. O-O {[%emt 0:00:16]} cxd4 {[%emt 0:00:56]} 13. Nxd4 {[%emt 0:00:04]} Nxe5 {[%emt 0:00:41]} 14. Bb5+ {[%emt 0:02:22]} Nd7 {[%emt 0:00:09]} 15. Re1 {[%emt 0:05:22]} Rc8 {[%emt 0:00:05]} 16. Qh5 {[%emt 0:14:22]} g6 {[%emt 0:07:20]} 17. Qh3 {[%emt 0:00:50]} a6 {[%emt 0:24:44]} 18. Bg5 {[%emt 0:20:09]} Be7 {[%emt 0:27:06]} 19. Bxe7 {[%emt 0:02:58]} Nxe7 {[%emt 0:06:50]} 20. Nxe6 {[%emt 0:08:58]} fxe6 {[%emt 0:00:26]} 21. Bxd7+ {[%emt 0:00:05]} Qxd7 {[%emt 0:00:55]} 22. Nb6 {[%emt 0:00:04]} Qb5 {[%emt 0:00:39]} 23. Nxc8 {[%emt 0:05:43]} Bxc8 {[%emt 0:00:07]} 24. Qh4 {[%emt 0:00:23]} Nf5 {[%emt 0:05:10]} 25. Qf6 {[%emt 0:08:04]} Rf8 {[%emt 0:00:06]} 26. Qg5 {[%emt 0:00:02]} Qb6 {[%emt 0:00:55]} 27. Rad1 {[%emt 0:02:59]} Kf7 {[%emt 0:02:01]} 28. Rd2 {[%emt 0:04:36]} Kg8 {[%emt 0:01:59]} 29. Red1 {[%emt 0:00:40]} Bb7 {[%emt 0:04:08]} 30. Rd8 {[%emt 0:00:42]} Ne7 {[%emt 0:05:20]} 31. Rxf8+ {[%emt 0:00:17]} Kxf8 {[%emt 0:00:01]} 32. Qf6+ {[%emt 0:00:06]} Ke8 {[%emt 0:00:04]} 33. Qh8+ {[%emt 0:00:04]} Kf7 {[%emt 0:00:02]} 34. Rd8 {[%emt 0:00:17]} 1-0

[Event "40th IND-chT Open 2020"]
[Site "Ahmedabad"]
[Date "2020.02.08"]
[Round "3.5"]
[White "Vignesh N R"]
[Black "Narayanan, Srinath"]
[Result "0-1"]
[ECO "B63"]
[WhiteElo "2436"]
[BlackElo "2535"]
[Annotator "ChessBase"]
[PlyCount "92"]
[EventDate "2020.02.05"]
[EventCountry "IND"]
[SourceTitle "playchess.com"]
[Source "ChessBase"]
[SourceQuality "1"]
[TimeControl "5400+30"]

1. e4 {[%emt 0:00:00]} c5 {[%emt 0:00:52]} 2. Nf3 {[%emt 0:00:00]} d6 {[%emt 0:00:05]} 3. d4 {[%emt 0:00:00]} cxd4 {[%emt 0:00:11]} 4. Nxd4 {[%emt 0:00:01]} Nf6 {[%emt 0:00:06]} 5. Nc3 {[%emt 0:00:04]} Nc6 {[%emt 0:00:04]} 6. Bg5 {[%emt 0:00:08]} e6 {[%emt 0:00:03]} 7. Qd2 {[%emt 0:00:06]} a6 {[%emt 0:00:07]} 8. O-O-O {[%emt 0:00:06]} Be7 {[%emt 0:00:03]} 9. f3 {[%emt 0:03:23]} O-O {[%emt 0:01:12]} 10. h4 {[%emt 0:01:19]} Nxd4 {[%emt 0:00:24]} 11. Qxd4 {[%emt 0:00:03]} b5 {[%emt 0:00:06]} 12. Kb1 {[%emt 0:01:04]} Bb7 {[%emt 0:00:14]} 13. e5 {[%emt 0:11:41]} dxe5 {[%emt 0:09:56]} 14. Qxe5 {[%emt 0:00:08]} Qb8 {[%emt 0:01:13]} 15. Qe3 {[%emt 0:06:50]} Rc8 {[%emt 0:27:40]} 16. Bxf6 {[%emt 0:19:06]} Bxf6 {[%emt 0:13:35]} 17. Ne4 {[%emt 0:00:03]} Be7 {[%emt 0:00:21]} 18. Bd3 {[%emt 0:01:25]} Bd5 {[%emt 0:05:26]} 19. Ng5 {[%emt 0:06:02]} h6 {[%emt 0:01:50]} 20. Bh7+ {[%emt 0:04:21]} Kf8 {[%emt 0:01:04]} 21. Rxd5 {[%emt 0:08:50]} exd5 {[%emt 0:17:50]} 22. Ne6+ {[%emt 0:00:26]} fxe6 {[%emt 0:01:28]} 23. Qxe6 {[%emt 0:00:02]} Bb4 {[%emt 0:00:15]} 24. c3 {[%emt 0:01:43]} Qf4 {[%emt 0:06:47]} 25. Qg8+ {[%emt 0:05:17]} Ke7 {[%emt 0:00:01]} 26. Re1+ {[%emt 0:02:03]} Kd6 {[%emt 0:01:00]} 27. Qe6+ {[%emt 0:09:35]} Kc7 {[%emt 0:00:11]} 28. g3 {[%emt 0:02:23]} Qf6 {[%emt 0:02:23]} 29. cxb4 {[%emt 0:05:08]} Qxe6 {[%emt 0:00:55]} 30. Rxe6 {[%emt 0:00:02]} Re8 {[%emt 0:00:05]} 31. Rg6 {[%emt 0:00:04]} Re7 {[%emt 0:00:11]} 32. Rg4 {[%emt 0:00:01]} Rf8 {[%emt 0:00:44]} 33. f4 {[%emt 0:00:02]} g5 {[%emt 0:05:00]} 34. Bd3 {[%emt 0:00:20]} gxf4 {[%emt 0:00:05]} 35. gxf4 {[%emt 0:00:03]} h5 {[%emt 0:00:19]} 36. Rg6 {[%emt 0:03:11]} Rxf4 {[%emt 0:00:49]} 37. Rxa6 {[%emt 0:00:01]} Re1+ {[%emt 0:01:00]} 38. Kc2 {[%emt 0:00:02]} Re3 {[%emt 0:00:16]} 39. Bxb5 {[%emt 0:04:46]} Rf2+ {[%emt 0:00:10]} 40. Kd1 {[%emt 0:00:05]} Rh3 {[%emt 0:00:58]} 41. Be2 {[%emt 0:00:24]} Rxh4 {[%emt 0:00:26]} 42. b5 {[%emt 0:00:14]} Rh1+ {[%emt 0:01:34]} 43. Kd2 {[%emt 0:00:02]} Rhh2 {[%emt 0:00:03]} 44. Re6 {[%emt 0:00:09]} Rxe2+ {[%emt 0:02:03]} 45. Rxe2 {[%emt 0:00:02]} Rxe2+ {[%emt 0:00:05]} 46. Kxe2 {[%emt 0:00:02]} h4 {[%emt 0:00:02]} 0-1

[Event "40th IND-chT Open 2020"]
[Site "Ahmedabad"]
[Date "2020.02.08"]
[Round "3.7"]
[White "Deepan Chakkravarthy J."]
[Black "Swayams, Mishra"]
[Result "1/2-1/2"]
[ECO "A10"]
[WhiteElo "2545"]
[BlackElo "2485"]
[Annotator "ChessBase"]
[PlyCount "118"]
[EventDate "2020.02.05"]
[EventCountry "IND"]
[SourceTitle "playchess.com"]
[Source "ChessBase"]
[SourceQuality "1"]
[TimeControl "5400+30"]

1. e3 {[%emt 0:04:09]} g6 {[%emt 0:03:04]} 2. c4 {[%emt 0:02:19]} Bg7 {[%emt 0:00:13]} 3. Nc3 {[%emt 0:00:03]} d6 {[%emt 0:04:10]} 4. b3 {[%emt 0:02:09]} e5 {[%emt 0:00:11]} 5. Bb2 {[%emt 0:00:05]} Nc6 {[%emt 0:09:36]} 6. Nge2 {[%emt 0:06:09]} Nh6 {[%emt 0:02:06]} 7. h4 {[%emt 0:09:32]} f5 {[%emt 0:08:41]} 8. Ng3 {[%emt 0:01:15]} Be6 {[%emt 0:01:28]} 9. a3 {[%emt 0:04:52]} a5 {[%emt 0:03:40]} 10. Qc2 {[%emt 0:03:52]} Qd7 {[%emt 0:02:14]} 11. Be2 {[%emt 0:00:38]} Qf7 {[%emt 0:14:55]} 12. Nf1 {[%emt 0:17:35]} Qe7 {[%emt 0:14:34]} 13. Nd5 {[%emt 0:08:06]} Qf7 {[%emt 0:03:23]} 14. Nc3 {[%emt 0:02:55]} Qe7 {[%emt 0:01:22]} 15. Nd5 {[%emt 0:06:15]} Qf7 {[%emt 0:00:08]} 16. Nh2 {[%emt 0:10:23]} Bxd5 {[%emt 0:03:49]} 17. cxd5 {[%emt 0:00:02]} Qxd5 {[%emt 0:00:10]} 18. Nf3 {[%emt 0:01:21]} Nf7 {[%emt 0:03:32]} 19. Bc4 {[%emt 0:10:32]} Qc5 {[%emt 0:00:10]} 20. d4 {[%emt 0:00:03]} exd4 {[%emt 0:14:22]} 21. exd4 {[%emt 0:02:53]} Nxd4 {[%emt 0:00:12]} 22. Nxd4 {[%emt 0:01:56]} Bxd4 {[%emt 0:01:00]} 23. Bxd4 {[%emt 0:01:14]} Qxd4 {[%emt 0:00:02]} 24. Bxf7+ {[%emt 0:00:05]} Kxf7 {[%emt 0:00:11]} 25. Qxc7+ {[%emt 0:00:04]} Kf6 {[%emt 0:00:13]} 26. O-O {[%emt 0:00:04]} Rhc8 {[%emt 0:08:33]} 27. Qxb7 {[%emt 0:00:33]} Rab8 {[%emt 0:00:09]} 28. Qd7 {[%emt 0:00:39]} Rd8 {[%emt 0:00:15]} 29. Qc7 {[%emt 0:00:08]} Rdc8 {[%emt 0:00:03]} 30. Qxa5 {[%emt 0:00:22]} Rxb3 {[%emt 0:00:57]} 31. Rad1 {[%emt 0:01:26]} Rd3 {[%emt 0:01:27]} 32. Rxd3 {[%emt 0:00:05]} Qxd3 {[%emt 0:00:01]} 33. Qa7 {[%emt 0:00:13]} Rc4 {[%emt 0:01:03]} 34. Qxh7 {[%emt 0:00:37]} Qxa3 {[%emt 0:00:27]} 35. Re1 {[%emt 0:03:10]} Re4 {[%emt 0:00:17]} 36. Qh8+ {[%emt 0:01:25]} Ke6 {[%emt 0:00:45]} 37. Rb1 {[%emt 0:00:41]} Qa7 {[%emt 0:00:36]} 38. Rb8 {[%emt 0:00:30]} Re1+ {[%emt 0:00:25]} 39. Kh2 {[%emt 0:00:03]} Qxf2 {[%emt 0:00:29]} 40. Qg8+ {[%emt 0:00:59]} Ke5 {[%emt 0:00:16]} 41. Qg7+ {[%emt 0:00:20]} Kf4 {[%emt 0:00:34]} 42. Rb4+ {[%emt 0:00:44]} Re4 {[%emt 0:00:23]} 43. Rb3 {[%emt 0:00:29]} Qxh4+ {[%emt 0:00:49]} 44. Rh3 {[%emt 0:00:02]} Qg4 {[%emt 0:00:32]} 45. Rf3+ {[%emt 0:00:54]} Kg5 {[%emt 0:00:02]} 46. Rg3 {[%emt 0:00:16]} Qxg3+ {[%emt 0:00:01]} 47. Kxg3 {[%emt 0:00:05]} d5 {[%emt 0:00:04]} 48. Qd7 {[%emt 0:01:07]} d4 {[%emt 0:00:24]} 49. Kf2 {[%emt 0:00:07]} Kh6 {[%emt 0:00:14]} 50. Qf7 {[%emt 0:00:53]} Kg5 {[%emt 0:00:25]} 51. Qg7 {[%emt 0:00:27]} Kh5 {[%emt 0:00:33]} 52. Qh7+ {[%emt 0:00:03]} Kg5 {[%emt 0:00:13]} 53. Qh8 {[%emt 0:00:02]} Rg4 {[%emt 0:01:17]} 54. Ke1 {[%emt 0:00:02]} Rxg2 {[%emt 0:00:44]} 55. Qxd4 {[%emt 0:00:13]} Rg4 {[%emt 0:00:07]} 56. Qh8 {[%emt 0:01:56]} Re4+ {[%emt 0:00:12]} 57. Kd2 {[%emt 0:00:27]} Rg4 {[%emt 0:00:03]} 58. Kd3 {[%emt 0:00:19]} Re4 {[%emt 0:00:03]} 59. Qd8+ {[%emt 0:00:55]} Kf4 {[%emt 0:03:41]} 1/2-1/2

[Event "40th IND-chT Open 2020"]
[Site "Ahmedabad"]
[Date "2020.02.08"]
[Round "3.8"]
[White "Bakre, Tejas"]
[Black "Swapnil, S. Dhopade"]
[Result "1/2-1/2"]
[ECO "D00"]
[WhiteElo "2425"]
[BlackElo "2495"]
[Annotator "ChessBase"]
[PlyCount "83"]
[EventDate "2020.02.05"]
[EventCountry "IND"]
[SourceTitle "playchess.com"]
[Source "ChessBase"]
[SourceQuality "1"]
[TimeControl "5400+30"]

1. d4 {[%emt 0:00:00]} Nf6 {[%emt 0:00:00]} 2. Bf4 {[%emt 0:00:21]} d5 {[%emt 0:00:00]} 3. e3 {[%emt 0:00:20]} e6 {[%emt 0:01:55]} 4. Nd2 {[%emt 0:00:49]} c5 {[%emt 0:00:24]} 5. c3 {[%emt 0:00:11]} Bd6 {[%emt 0:00:27]} 6. Bg3 {[%emt 0:00:58]} Qc7 {[%emt 0:03:06]} 7. Ngf3 {[%emt 0:10:33]} Nbd7 {[%emt 0:00:28]} 8. Bb5 {[%emt 0:01:10]} O-O {[%emt 0:00:51]} 9. O-O {[%emt 0:00:16]} Bxg3 {[%emt 0:04:23]} 10. hxg3 {[%emt 0:00:09]} a6 {[%emt 0:08:16]} 11. Bxd7 {[%emt 0:02:27]} Bxd7 {[%emt 0:02:21]} 12. Ne5 {[%emt 0:00:17]} Bb5 {[%emt 0:00:07]} 13. Re1 {[%emt 0:00:22]} Nd7 {[%emt 0:00:57]} 14. Ndf3 {[%emt 0:05:53]} Nxe5 {[%emt 0:03:12]} 15. Nxe5 {[%emt 0:00:16]} a5 {[%emt 0:01:48]} 16. Rc1 {[%emt 0:06:28]} Rfd8 {[%emt 0:04:44]} 17. Qg4 {[%emt 0:07:37]} Ra6 {[%emt 0:02:28]} 18. Qf4 {[%emt 0:06:03]} f6 {[%emt 0:09:14]} 19. Nf3 {[%emt 0:00:59]} Rc6 {[%emt 0:06:32]} 20. e4 {[%emt 0:07:38]} Qxf4 {[%emt 0:09:07]} 21. gxf4 {[%emt 0:00:09]} dxe4 {[%emt 0:00:03]} 22. Rxe4 {[%emt 0:00:26]} Bc4 {[%emt 0:04:28]} 23. dxc5 {[%emt 0:01:26]} Bxa2 {[%emt 0:00:42]} 24. Ra4 {[%emt 0:11:52]} Bd5 {[%emt 0:00:45]} 25. Rxa5 {[%emt 0:00:44]} Rdc8 {[%emt 0:02:17]} 26. b4 {[%emt 0:08:34]} b6 {[%emt 0:00:16]} 27. cxb6 {[%emt 0:00:41]} Rxb6 {[%emt 0:00:06]} 28. b5 {[%emt 0:02:24]} Rc5 {[%emt 0:06:43]} 29. Nd2 {[%emt 0:03:39]} Rcxb5 {[%emt 0:10:06]} 30. Rxb5 {[%emt 0:00:12]} Rxb5 {[%emt 0:00:04]} 31. c4 {[%emt 0:00:06]} Rc5 {[%emt 0:00:02]} 32. Re1 {[%emt 0:00:10]} Bc6 {[%emt 0:02:22]} 33. Rxe6 {[%emt 0:00:08]} Kf7 {[%emt 0:00:08]} 34. Rd6 {[%emt 0:02:37]} Ke7 {[%emt 0:00:40]} 35. Rd4 {[%emt 0:01:59]} Ra5 {[%emt 0:00:12]} 36. f3 {[%emt 0:00:08]} h5 {[%emt 0:01:15]} 37. Kf2 {[%emt 0:00:15]} h4 {[%emt 0:03:47]} 38. f5 {[%emt 0:03:23]} h3 {[%emt 0:04:10]} 39. g4 {[%emt 0:02:59]} Ra2 {[%emt 0:01:51]} 40. Kg3 {[%emt 0:04:05]} h2 {[%emt 0:00:15]} 41. Kxh2 {[%emt 0:00:05]} Bxf3 {[%emt 0:00:04]} 42. Kg3 {[%emt 0:00:09]} 1/2-1/2

[Event "40th IND-chT Open 2020"]
[Site "Ahmedabad"]
[Date "2020.02.08"]
[Round "3.9"]
[White "Prasenjit Dutta"]
[Black "Raja Harshit"]
[Result "0-1"]
[ECO "B93"]
[WhiteElo "2285"]
[BlackElo "2472"]
[Annotator "ChessBase"]
[PlyCount "114"]
[EventDate "2020.02.05"]
[EventCountry "IND"]
[SourceTitle "playchess.com"]
[Source "ChessBase"]
[SourceQuality "1"]
[TimeControl "5400+30"]

1. e4 {[%emt 0:00:00]} c5 {[%emt 0:00:00]} 2. Nf3 {[%emt 0:00:30]} d6 {[%emt 0:00:30]} 3. d4 {[%emt 0:00:30]} cxd4 {[%emt 0:00:30]} 4. Nxd4 {[%emt 0:00:30]} Nf6 {[%emt 0:00:30]} 5. Nc3 {[%emt 0:00:30]} a6 {[%emt 0:00:30]} 6. f4 {[%emt 0:00:30]} e5 {[%emt 0:00:30]} 7. Nf3 {[%emt 0:00:30]} Nbd7 {[%emt 0:00:30]} 8. Bd3 {[%emt 0:00:30]} Be7 {[%emt 0:00:30]} 9. O-O {[%emt 0:00:30]} O-O {[%emt 0:00:30]} 10. Kh1 {[%emt 0:00:30]} b5 {[%emt 0:00:30]} 11. a3 {[%emt 0:00:30]} Re8 {[%emt 0:00:30]} 12. fxe5 {[%emt 0:00:30]} dxe5 {[%emt 0:00:30]} 13. Bg5 {[%emt 0:00:30]} h6 {[%emt 0:00:30]} 14. Bxf6 {[%emt 0:00:30]} Nxf6 {[%emt 0:00:30]} 15. Nxe5 {[%emt 0:00:30]} Qc7 {[%emt 0:00:30]} 16. Nf3 {[%emt 0:00:30]} Bb7 {[%emt 0:00:30]} 17. Nd4 {[%emt 0:00:30]} Qe5 {[%emt 0:00:30]} 18. Nf5 {[%emt 0:00:30]} Bd8 {[%emt 0:00:30]} 19. Nd5 {[%emt 0:00:30]} Nxd5 {[%emt 0:00:30]} 20. exd5 {[%emt 0:00:30]} Bxd5 {[%emt 0:00:30]} 21. Re1 {[%emt 0:00:30]} Qxe1+ {[%emt 0:00:30]} 22. Qxe1 {[%emt 0:00:30]} Rxe1+ {[%emt 0:00:30]} 23. Rxe1 {[%emt 0:00:30]} Kf8 {[%emt 0:00:30]} 24. Ne3 {[%emt 0:00:30]} Bc6 {[%emt 0:00:30]} 25. Ng4 {[%emt 0:00:30]} Bc7 {[%emt 0:00:30]} 26. Re2 {[%emt 0:00:30]} f6 {[%emt 0:00:30]} 27. Kg1 {[%emt 0:00:30]} Rd8 {[%emt 0:00:30]} 28. h3 {[%emt 0:00:30]} h5 {[%emt 0:00:30]} 29. Nf2 {[%emt 0:00:30]} Be5 {[%emt 0:00:30]} 30. Nd1 {[%emt 0:00:30]} Bd5 {[%emt 0:00:30]} 31. Kf2 {[%emt 0:00:30]} h4 {[%emt 0:00:30]} 32. Ke1 {[%emt 0:00:30]} Rd7 {[%emt 0:00:30]} 33. Kf1 {[%emt 0:00:30]} Rd8 {[%emt 0:00:30]} 34. Ke1 {[%emt 0:00:30]} g5 {[%emt 0:00:30]} 35. Kd2 {[%emt 0:00:30]} Kf7 {[%emt 0:00:30]} 36. Ke1 {[%emt 0:00:30]} Be6 {[%emt 0:00:30]} 37. Nc3 {[%emt 0:00:30]} Bg3+ {[%emt 0:00:30]} 38. Kf1 {[%emt 0:00:30]} f5 {[%emt 0:00:30]} 39. a4 {[%emt 0:00:30]} b4 {[%emt 0:00:30]} 40. Nd1 {[%emt 0:00:30]} b3 {[%emt 0:00:30]} 41. Ne3 {[%emt 0:00:30]} Rd4 {[%emt 0:00:30]} 42. Kg1 {[%emt 0:00:30]} Rxa4 {[%emt 0:00:30]} 43. cxb3 {[%emt 0:00:30]} Ra1+ {[%emt 0:00:30]} 44. Nf1 {[%emt 0:00:30]} Bxb3 {[%emt 0:00:30]} 45. Rd2 {[%emt 0:00:30]} Kf6 {[%emt 0:00:30]} 46. Be2 {[%emt 0:00:30]} a5 {[%emt 0:00:30]} 47. Bb5 {[%emt 0:00:30]} a4 {[%emt 0:00:30]} 48. Rd8 {[%emt 0:00:30]} Rb1 {[%emt 0:00:30]} 49. Rf8+ {[%emt 0:00:30]} Kg7 {[%emt 0:00:30]} 50. Re8 {[%emt 0:00:30]} Kf7 {[%emt 0:00:30]} 51. Re2 {[%emt 0:00:30]} Kf6 {[%emt 0:00:30]} 52. Bd3 {[%emt 0:00:30]} Rd1 {[%emt 0:00:30]} 53. Bb5 {[%emt 0:00:30]} Be5 {[%emt 0:00:30]} 54. Rd2 {[%emt 0:00:30]} Rb1 {[%emt 0:00:30]} 55. Kf2 {[%emt 0:00:30]} Bxb2 {[%emt 0:00:30]} 56. Ne3 {[%emt 0:00:30]} a3 {[%emt 0:00:30]} 57. Rd3 {[%emt 0:00:30]} Be5 {[%emt 0:00:30]} 0-1

[Event "40th IND-chT Open 2020"]
[Site "Ahmedabad"]
[Date "2020.02.08"]
[Round "3.11"]
[White "Aradhya, Garg"]
[Black "Visakh N R"]
[Result "1/2-1/2"]
[ECO "D37"]
[WhiteElo "2169"]
[BlackElo "2518"]
[Annotator "ChessBase"]
[PlyCount "100"]
[EventDate "2020.02.05"]
[EventCountry "IND"]
[SourceTitle "playchess.com"]
[Source "ChessBase"]
[SourceQuality "1"]
[TimeControl "5400+30"]

1. d4 {[%emt 0:00:00]} Nf6 {[%emt 0:00:00]} 2. Nf3 {[%emt 0:00:30]} e6 {[%emt 0:00:30]} 3. c4 {[%emt 0:00:30]} d5 {[%emt 0:00:30]} 4. Nc3 {[%emt 0:00:30]} a6 {[%emt 0:00:30]} 5. cxd5 {[%emt 0:00:30]} exd5 {[%emt 0:00:30]} 6. Bg5 {[%emt 0:00:30]} Be6 {[%emt 0:00:30]} 7. Qb3 {[%emt 0:00:30]} Nbd7 {[%emt 0:00:30]} 8. Bxf6 {[%emt 0:00:30]} Nxf6 {[%emt 0:00:30]} 9. Qxb7 {[%emt 0:00:30]} Rb8 {[%emt 0:00:30]} 10. Qxa6 {[%emt 0:00:30]} Rxb2 {[%emt 0:00:30]} 11. a3 {[%emt 0:00:30]} Bd6 {[%emt 0:00:30]} 12. g3 {[%emt 0:00:30]} Qb8 {[%emt 0:00:30]} 13. Bg2 {[%emt 0:00:30]} Rb3 {[%emt 0:00:30]} 14. Qa5 {[%emt 0:00:30]} c6 {[%emt 0:00:30]} 15. Nd2 {[%emt 0:00:30]} Rb2 {[%emt 0:00:30]} 16. Na4 {[%emt 0:00:30]} Rb5 {[%emt 0:00:30]} 17. Qc3 {[%emt 0:00:30]} Qa8 {[%emt 0:00:30]} 18. Nc5 {[%emt 0:00:30]} Bxc5 {[%emt 0:00:30]} 19. dxc5 {[%emt 0:00:30]} O-O {[%emt 0:00:30]} 20. O-O {[%emt 0:00:30]} Nd7 {[%emt 0:00:30]} 21. Nb3 {[%emt 0:00:30]} Rfb8 {[%emt 0:00:30]} 22. Nd4 {[%emt 0:00:30]} Rxc5 {[%emt 0:00:30]} 23. Qe3 {[%emt 0:00:30]} Re8 {[%emt 0:00:30]} 24. Nxe6 {[%emt 0:00:30]} Rxe6 {[%emt 0:00:30]} 25. Qd2 {[%emt 0:00:30]} Nf6 {[%emt 0:00:30]} 26. a4 {[%emt 0:00:30]} Ra5 {[%emt 0:00:30]} 27. Qc2 {[%emt 0:00:30]} Ne4 {[%emt 0:00:30]} 28. Rab1 {[%emt 0:00:30]} Rc5 {[%emt 0:00:30]} 29. Qd3 {[%emt 0:00:30]} g6 {[%emt 0:00:30]} 30. Rb4 {[%emt 0:00:30]} Nc3 {[%emt 0:00:30]} 31. e3 {[%emt 0:00:30]} Re8 {[%emt 0:00:30]} 32. Ra1 {[%emt 0:00:30]} Qa5 {[%emt 0:00:30]} 33. Rf4 {[%emt 0:00:30]} Qb6 {[%emt 0:00:30]} 34. Bf3 {[%emt 0:00:30]} Qb2 {[%emt 0:00:30]} 35. Re1 {[%emt 0:00:30]} Ra8 {[%emt 0:00:30]} 36. e4 {[%emt 0:00:30]} dxe4 {[%emt 0:00:30]} 37. Bxe4 {[%emt 0:00:30]} Re5 {[%emt 0:00:30]} 38. Re3 {[%emt 0:00:30]} Nxe4 {[%emt 0:00:30]} 39. Rfxe4 {[%emt 0:00:30]} Rxe4 {[%emt 0:00:30]} 40. Rxe4 {[%emt 0:00:30]} c5 {[%emt 0:00:30]} 41. Qd5 {[%emt 0:00:30]} Rc8 {[%emt 0:00:30]} 42. Rf4 {[%emt 0:00:30]} Qg7 {[%emt 0:00:30]} 43. Kg2 {[%emt 0:00:30]} Qf8 {[%emt 0:00:30]} 44. a5 {[%emt 0:00:30]} c4 {[%emt 0:00:30]} 45. Qb7 {[%emt 0:00:30]} Rb8 {[%emt 0:00:30]} 46. Qc7 {[%emt 0:00:30]} Rc8 {[%emt 0:00:30]} 47. Qa7 {[%emt 0:00:30]} Ra8 {[%emt 0:00:30]} 48. Qb7 {[%emt 0:00:30]} Rb8 {[%emt 0:00:30]} 49. Qa6 {[%emt 0:00:30]} Ra8 {[%emt 0:00:30]} 50. Qb7 {[%emt 0:00:30]} Rb8 {[%emt 0:00:30]} 1/2-1/2

[Event "40th IND-chT Open 2020"]
[Site "Ahmedabad"]
[Date "2020.02.08"]
[Round "3.12"]
[White "Harshavardhan G B"]
[Black "Adarsh Tripathi"]
[Result "1-0"]
[ECO "A57"]
[WhiteElo "2377"]
[BlackElo "2100"]
[Annotator "ChessBase"]
[PlyCount "115"]
[EventDate "2020.02.05"]
[EventCountry "IND"]
[SourceTitle "playchess.com"]
[Source "ChessBase"]
[SourceQuality "1"]
[TimeControl "5400+30"]

1. d4 Nf6 2. c4 c5 3. d5 b5 4. Nd2 g6 5. e4 d6 6. cxb5 a6 7. a4 Bg7 8. Ngf3 O-O 9. Ra3 Bg4 10. Be2 axb5 11. axb5 Rxa3 12. bxa3 Qa5 13. O-O Bxf3 14. gxf3 Nh5 15. Nc4 Qxb5 16. Nxd6 Qd7 17. Nc4 e5 18. dxe6 Qxe6 19. Qd5 Nc6 20. f4 Nd4 21. Bxh5 gxh5 22. Qxe6 fxe6 23. Be3 Ne2+ 24. Kg2 Nxf4+ 25. Bxf4 Rxf4 26. f3 Rf8 27. Rb1 Ra8 28. Kf2 Ra4 29. Rc1 Bd4+ 30. Ke2 Ra7 31. Kd3 Rf7 32. Rf1 Rg7 33. a4 Rb7 34. Rc1 Rb3+ 35. Ke2 Rb4 36. a5 Ra4 37. Kd3 Ra2 38. Rb1 h4 39. h3 Kg7 40. Rb3 Rf2 41. Rb7+ Kf6 42. Nd2 e5 43. Rc7 Ke6 44. a6 Rg2 45. Nc4 Rf2 46. a7 Ra2 47. Rb7 h6 48. Nb6 c4+ 49. Kxc4 Bxb6 50. Rxb6+ Kf7 51. Rb7+ Ke6 52. Kc5 Kf6 53. Kb6 Kg5 54. Rf7 Rb2+ 55. Kc6 Rc2+ 56. Kb7 Rb2+ 57. Kc8 Rc2+ 58. Kb8 1-0

[Event "40th IND-chT Open 2020"]
[Site "Ahmedabad"]
[Date "2020.02.08"]
[Round "3.13"]
[White "Erigaisi Arjun"]
[Black "Sidhant, Mohapatra"]
[Result "1/2-1/2"]
[ECO "D10"]
[WhiteElo "2563"]
[BlackElo "2367"]
[Annotator "ChessBase"]
[PlyCount "67"]
[EventDate "2020.02.05"]
[EventCountry "IND"]
[SourceTitle "playchess.com"]
[Source "ChessBase"]
[SourceQuality "1"]
[TimeControl "5400+30"]

1. d4 {[%emt 1:30:30]} d5 {[%emt 1:30:30]} 2. c4 {[%emt 0:00:30]} c6 {[%emt 0:00:30]} 3. cxd5 {[%emt 0:00:30]} cxd5 {[%emt 0:00:30]} 4. Bg5 {[%emt 0:00:30]} Nc6 {[%emt 0:00:30]} 5. Nc3 {[%emt 0:00:30]} Nf6 {[%emt 0:00:30]} 6. Bxf6 {[%emt 0:00:30]} gxf6 {[%emt 0:00:30]} 7. e3 {[%emt 0:00:30]} e6 {[%emt 0:00:30]} 8. Bd3 {[%emt 0:00:30]} f5 {[%emt 0:00:30]} 9. Nge2 {[%emt 0:00:30]} Bd6 {[%emt 0:00:30]} 10. Rc1 {[%emt 0:00:30]} a6 {[%emt 0:00:30]} 11. O-O {[%emt 0:00:30]} O-O {[%emt 0:00:30]} 12. a3 {[%emt 0:00:30]} Kh8 {[%emt 0:00:30]} 13. Na4 {[%emt 0:00:30]} Ne7 {[%emt 0:00:30]} 14. g3 {[%emt 0:00:30]} b6 {[%emt 0:00:30]} 15. f3 {[%emt 0:00:30]} Bd7 {[%emt 0:00:30]} 16. Nac3 {[%emt 0:00:30]} Bb8 {[%emt 0:00:30]} 17. e4 {[%emt 0:00:30]} f4 {[%emt 0:00:30]} 18. gxf4 {[%emt 0:00:30]} Ng6 {[%emt 0:00:30]} 19. e5 {[%emt 0:00:30]} f5 {[%emt 0:00:30]} 20. Kh1 {[%emt 0:00:30]} b5 {[%emt 0:00:30]} 21. Qe1 {[%emt 0:00:30]} Rg8 {[%emt 0:00:30]} 22. Nb1 {[%emt 0:00:30]} Qf8 {[%emt 0:00:30]} 23. Rg1 {[%emt 0:00:30]} Ba7 {[%emt 0:00:30]} 24. Qg3 {[%emt 0:00:30]} Bb6 {[%emt 0:00:30]} 25. Nd2 {[%emt 0:00:30]} b4 {[%emt 0:00:30]} 26. Nb1 {[%emt 0:00:30]} a5 {[%emt 0:00:30]} 27. Qh3 {[%emt 0:00:30]} Rc8 {[%emt 0:00:30]} 28. Rxc8 {[%emt 0:00:30]} Qxc8 {[%emt 0:00:30]} 29. Qh6 {[%emt 0:00:30]} Qe8 {[%emt 0:00:30]} 30. axb4 {[%emt 0:00:30]} axb4 {[%emt 0:00:30]} 31. Nd2 {[%emt 0:00:30]} Bb5 {[%emt 0:00:30]} 32. Bxb5 {[%emt 0:00:30]} Qxb5 {[%emt 0:00:30]} 33. Rg2 {[%emt 0:00:30]} Qd3 {[%emt 0:00:30]} 34. Rxg6 {[%emt 0:00:30]} 1/2-1/2